[Event "January 9 Early 2024"]
[Site "https://www.chess.com"]
[Date "2024.01.11"]
[Round "6"]
[White "Gonzalez Vega, Alejandro"]
[Black "Saha, Ananda"]
[Result "0-1"]
[Board "69"]
[TimeControl "180+1"]
[WhiteFideId "3510042"]
[BlackFideId "2619644"]
[WhiteElo "2259"]
[BlackElo "2478"]
[WhiteTeam "CUB"]
[BlackTeam "CAN"]
[WhiteClock "0:00:16"]
[BlackClock "0:01:01"]

1. e4 {[%clk 0:02:57]}  e6 {[%clk 0:03:00]} 2. Nf3 {[%clk 0:02:56]}  d5 {[%clk 0:03:00]} 3. e5 {[%clk 0:02:53]}  c5 {[%clk 0:03:00]} 4. b4 {[%clk 0:02:53]}  cxb4 {[%clk 0:02:59]} 5. d4 {[%clk 0:02:53]}  Bd7 {[%clk 0:02:56]} 6. a3 {[%clk 0:02:53]}  bxa3 {[%clk 0:02:55]} 7. c3 {[%clk 0:02:54]}  a6 {[%clk 0:02:52]} 8. Nxa3 {[%clk 0:02:52]}  Nc6 {[%clk 0:02:44]} 9. Bd3 {[%clk 0:02:49]}  Nh6 {[%clk 0:02:38]} 10. O-O {[%clk 0:02:48]}  Be7 {[%clk 0:02:35]} 11. Nc2 {[%clk 0:02:44]}  Nf5 {[%clk 0:02:33]} 12. Ne3 {[%clk 0:02:37]}  Nxe3 {[%clk 0:02:23]} 13. fxe3 {[%clk 0:02:38]}  Qc7 {[%clk 0:02:02]} 14. Ba3 {[%clk 0:02:23]}  Bxa3 {[%clk 0:01:40]} 15. Rxa3 {[%clk 0:02:21]}  h6 {[%clk 0:01:34]} 16. e4 {[%clk 0:02:10]}  Ne7 {[%clk 0:01:32]} 17. Qe2 {[%clk 0:02:04]}  Bc6 {[%clk 0:01:28]} 18. Nd2 {[%clk 0:01:55]}  O-O {[%clk 0:01:22]} 19. c4 {[%clk 0:00:51]}  dxc4 {[%clk 0:01:08]} 20. Nxc4 {[%clk 0:00:40]}  Rad8 {[%clk 0:01:08]} 21. Nd6 {[%clk 0:00:36]}  Nc8 {[%clk 0:01:09]} 22. Nxc8 {[%clk 0:00:31]}  Qxc8 {[%clk 0:01:09]} 23. Qe3 {[%clk 0:00:26]}  Qd7 {[%clk 0:01:07]} 24. d5 {[%clk 0:00:21]}  exd5 {[%clk 0:01:05]} 25. exd5 {[%clk 0:00:20]}  Qxd5 {[%clk 0:01:05]} 26. Qg3 {[%clk 0:00:16]}  Qc5+ {[%clk 0:01:01]} 0-1

[Event "January 9 Early 2024"]
[Site "https://www.chess.com"]
[Date "2024.01.11"]
[Round "6"]
[White "Benedetti, Julio"]
[Black "Golubovic, Erik"]
[Result "1/2-1/2"]
[Board "70"]
[TimeControl "180+1"]
[WhiteFideId "172545"]
[BlackFideId "14586908"]
[WhiteElo "2496"]
[BlackElo "2262"]
[WhiteTeam "ARG"]
[BlackTeam "CRO"]
[WhiteClock "0:01:50"]
[BlackClock "0:01:00"]

1. e4 {[%clk 0:02:59]}  c5 {[%clk 0:03:00]} 2. Nc3 {[%clk 0:02:59]}  d6 {[%clk 0:03:00]} 3. f4 {[%clk 0:02:59]}  g6 {[%clk 0:03:00]} 4. Nf3 {[%clk 0:02:58]}  Bg7 {[%clk 0:03:01]} 5. Bc4 {[%clk 0:02:59]}  Nc6 {[%clk 0:03:00]} 6. d3 {[%clk 0:02:59]}  e6 {[%clk 0:03:00]} 7. O-O {[%clk 0:03:00]}  Nge7 {[%clk 0:02:59]} 8. f5 {[%clk 0:03:00]}  O-O {[%clk 0:02:46]} 9. fxe6 {[%clk 0:03:00]}  Bxe6 {[%clk 0:02:44]} 10. Bxe6 {[%clk 0:03:01]}  fxe6 {[%clk 0:02:44]} 11. Bg5 {[%clk 0:02:59]}  Qd7 {[%clk 0:02:40]} 12. Qe1 {[%clk 0:02:58]}  Nd4 {[%clk 0:02:37]} 13. Nxd4 {[%clk 0:02:59]}  Bxd4+ {[%clk 0:02:35]} 14. Kh1 {[%clk 0:02:58]}  Rxf1+ {[%clk 0:02:35]} 15. Qxf1 {[%clk 0:02:59]}  Rf8 {[%clk 0:02:34]} 16. Qe1 {[%clk 0:02:59]}  Nc6 {[%clk 0:02:34]} 17. Qh4 {[%clk 0:02:59]}  Qf7 {[%clk 0:02:27]} 18. Qe1 {[%clk 0:02:27]}  Qf2 {[%clk 0:02:24]} 19. Ne2 {[%clk 0:02:27]}  Qxe1+ {[%clk 0:02:15]} 20. Rxe1 {[%clk 0:02:28]}  Bxb2 {[%clk 0:02:13]} 21. Bf4 {[%clk 0:02:27]}  Be5 {[%clk 0:02:13]} 22. Bxe5 {[%clk 0:02:25]}  Nxe5 {[%clk 0:02:14]} 23. Kg1 {[%clk 0:02:25]}  b5 {[%clk 0:02:12]} 24. Rb1 {[%clk 0:02:23]}  b4 {[%clk 0:02:12]} 25. a3 {[%clk 0:02:22]}  a5 {[%clk 0:02:10]} 26. h3 {[%clk 0:02:17]}  Nc6 {[%clk 0:02:04]} 27. axb4 {[%clk 0:02:13]}  cxb4 {[%clk 0:01:55]} 28. c3 {[%clk 0:02:13]}  Rb8 {[%clk 0:01:52]} 29. cxb4 {[%clk 0:02:09]}  Rxb4 {[%clk 0:01:51]} 30. Rc1 {[%clk 0:02:10]}  Nd4 {[%clk 0:01:50]} 31. Nxd4 {[%clk 0:01:56]}  Rxd4 {[%clk 0:01:50]} 32. Rc3 {[%clk 0:01:57]}  Kf7 {[%clk 0:01:42]} 33. Kf2 {[%clk 0:01:56]}  e5 {[%clk 0:01:39]} 34. Ke3 {[%clk 0:01:55]}  Ke6 {[%clk 0:01:35]} 35. Rc7 {[%clk 0:01:54]}  h5 {[%clk 0:01:34]} 36. g4 {[%clk 0:01:54]}  hxg4 {[%clk 0:01:34]} 37. hxg4 {[%clk 0:01:55]}  Ra4 {[%clk 0:01:30]} 38. g5 {[%clk 0:01:55]}  Ra1 {[%clk 0:01:29]} 39. Rg7 {[%clk 0:01:55]}  a4 {[%clk 0:01:24]} 40. Rxg6+ {[%clk 0:01:55]}  Ke7 {[%clk 0:01:23]} 41. Rg7+ {[%clk 0:01:55]}  Ke6 {[%clk 0:01:23]} 42. Ra7 {[%clk 0:01:55]}  a3 {[%clk 0:01:22]} 43. g6 {[%clk 0:01:55]}  a2 {[%clk 0:01:17]} 44. g7 {[%clk 0:01:54]}  Rg1 {[%clk 0:01:17]} 45. Rxa2 {[%clk 0:01:48]}  Rxg7 {[%clk 0:01:16]} 46. Rh2 {[%clk 0:01:47]}  Rg3+ {[%clk 0:01:13]} 47. Kd2 {[%clk 0:01:47]}  Rg6 {[%clk 0:01:13]} 48. Rh8 {[%clk 0:01:46]}  d5 {[%clk 0:01:09]} 49. Re8+ {[%clk 0:01:44]}  Kd7 {[%clk 0:01:04]} 50. Rxe5 {[%clk 0:01:43]}  dxe4 {[%clk 0:01:04]} 51. Rxe4 {[%clk 0:01:43]}  Rh6 {[%clk 0:01:02]} 52. Kc3 {[%clk 0:01:44]}  Rg6 {[%clk 0:01:02]} 53. Kc4 {[%clk 0:01:44]}  Rh6 {[%clk 0:01:02]} 54. Re5 {[%clk 0:01:45]}  Rg6 {[%clk 0:01:02]} 55. Kc5 {[%clk 0:01:44]}  Rc6+ {[%clk 0:01:00]} 56. Kd4 {[%clk 0:01:44]}  Rd6+ {[%clk 0:00:59]} 57. Rd5 {[%clk 0:01:42]}  Kc6 {[%clk 0:00:59]} 58. Rxd6+ {[%clk 0:01:41]}  Kxd6 {[%clk 0:00:59]} 59. Ke4 {[%clk 0:01:42]}  Ke6 {[%clk 0:00:59]} 60. d4 {[%clk 0:01:42]}  Kd6 {[%clk 0:00:59]} 61. Kd3 {[%clk 0:01:42]}  Kd5 {[%clk 0:00:59]} 62. Kc3 {[%clk 0:01:43]}  Kd6 {[%clk 0:00:59]} 63. Kc4 {[%clk 0:01:44]}  Kc6 {[%clk 0:00:59]} 64. d5+ {[%clk 0:01:44]}  Kd6 {[%clk 0:01:00]} 65. Kd4 {[%clk 0:01:44]}  Kd7 {[%clk 0:01:00]} 66. Kc5 {[%clk 0:01:45]}  Kc7 {[%clk 0:01:00]} 67. d6+ {[%clk 0:01:46]}  Kd7 {[%clk 0:01:00]} 68. Kd5 {[%clk 0:01:47]}  Kd8 {[%clk 0:01:00]} 69. Ke6 {[%clk 0:01:48]}  Ke8 {[%clk 0:01:01]} 70. Ke5 {[%clk 0:01:48]}  Kd7 {[%clk 0:01:01]} 71. Kd5 {[%clk 0:01:48]}  Kd8 {[%clk 0:01:01]} 72. Kc5 {[%clk 0:01:49]}  Kd7 {[%clk 0:01:00]} 73. Kd5 {[%clk 0:01:50]} 1/2-1/2

[Event "January 9 Early 2024"]
[Site "https://www.chess.com"]
[Date "2024.01.11"]
[Round "6"]
[White "Vila Dupla, Aurelio"]
[Black "Sava, Ana-Maria"]
[Result "1-0"]
[Board "73"]
[TimeControl "180+1"]
[WhiteFideId "2203383"]
[BlackFideId "1213504"]
[WhiteElo "2173"]
[BlackElo "1814"]
[WhiteTeam "ESP"]
[BlackTeam "ROU"]
[WhiteClock "0:00:27"]
[BlackClock "0:00:50"]

1. Nf3 {[%clk 0:03:00]}  d5 {[%clk 0:02:43]} 2. d4 {[%clk 0:03:00]}  e6 {[%clk 0:02:36]} 3. c4 {[%clk 0:02:59]}  c5 {[%clk 0:02:33]} 4. cxd5 {[%clk 0:02:57]}  exd5 {[%clk 0:02:07]} 5. g3 {[%clk 0:02:56]}  c4 {[%clk 0:02:06]} 6. Bg2 {[%clk 0:02:55]}  Nf6 {[%clk 0:02:06]} 7. O-O {[%clk 0:02:55]}  Be7 {[%clk 0:02:04]} 8. b3 {[%clk 0:02:54]}  O-O {[%clk 0:02:01]} 9. Ne5 {[%clk 0:02:33]}  cxb3 {[%clk 0:01:59]} 10. Qxb3 {[%clk 0:02:32]}  Nc6 {[%clk 0:01:57]} 11. Nxc6 {[%clk 0:02:31]}  bxc6 {[%clk 0:01:56]} 12. Nc3 {[%clk 0:01:43]}  Ba6 {[%clk 0:01:54]} 13. Ba3 {[%clk 0:01:26]}  Rb8 {[%clk 0:01:52]} 14. Bxe7 {[%clk 0:01:25]}  Qxe7 {[%clk 0:01:52]} 15. Qa4 {[%clk 0:01:24]}  Bc4 {[%clk 0:01:46]} 16. Rab1 {[%clk 0:01:17]}  Qc7 {[%clk 0:01:24]} 17. Rfc1 {[%clk 0:01:16]}  Rb6 {[%clk 0:01:14]} 18. e4 {[%clk 0:01:02]}  Bd3 {[%clk 0:01:04]} 19. Rxb6 {[%clk 0:01:01]}  axb6 {[%clk 0:01:04]} 20. Nxd5 {[%clk 0:00:48]}  Nxd5 {[%clk 0:01:03]} 21. exd5 {[%clk 0:00:48]}  c5 {[%clk 0:00:58]} 22. dxc5 {[%clk 0:00:31]}  bxc5 {[%clk 0:00:58]} 23. Qa3 {[%clk 0:00:32]}  c4 {[%clk 0:00:57]} 24. Qxd3 {[%clk 0:00:30]}  cxd3 {[%clk 0:00:57]} 25. Rxc7 {[%clk 0:00:30]}  d2 {[%clk 0:00:56]} 26. Bf3 {[%clk 0:00:30]}  Re8 {[%clk 0:00:55]} 27. d6 {[%clk 0:00:29]}  h6 {[%clk 0:00:53]} 28. d7 {[%clk 0:00:28]}  Re1+ {[%clk 0:00:53]} 29. Kg2 {[%clk 0:00:28]}  d1=Q {[%clk 0:00:52]} 30. Bxd1 {[%clk 0:00:26]}  Rxd1 {[%clk 0:00:52]} 31. Rc8+ {[%clk 0:00:26]}  Kh7 {[%clk 0:00:50]} 32. d8=Q {[%clk 0:00:27]} 1-0

[Event "January 9 Early 2024"]
[Site "https://www.chess.com"]
[Date "2024.01.11"]
[Round "6"]
[White "Filippova, Margarita"]
[Black "Tarnowska, Aleksandra"]
[Result "1-0"]
[Board "74"]
[TimeControl "180+1"]
[WhiteFideId "34199680"]
[BlackFideId "1180967"]
[WhiteElo "2345"]
[BlackElo "2203"]
[WhiteTeam "RUS"]
[BlackTeam "POL"]
[WhiteClock "0:01:22"]
[BlackClock "0:00:01"]

1. e4 {[%clk 0:03:00]}  c5 {[%clk 0:02:59]} 2. Nf3 {[%clk 0:02:58]}  e6 {[%clk 0:03:00]} 3. c3 {[%clk 0:02:58]}  d5 {[%clk 0:02:59]} 4. e5 {[%clk 0:02:58]}  d4 {[%clk 0:02:48]} 5. Bd3 {[%clk 0:02:58]}  Nc6 {[%clk 0:02:45]} 6. O-O {[%clk 0:02:56]}  Nge7 {[%clk 0:02:42]} 7. Qe2 {[%clk 0:02:55]}  Ng6 {[%clk 0:02:32]} 8. Qe4 {[%clk 0:02:53]}  dxc3 {[%clk 0:02:08]} 9. dxc3 {[%clk 0:02:52]}  Ngxe5 {[%clk 0:02:01]} 10. Nxe5 {[%clk 0:02:47]}  Nxe5 {[%clk 0:02:00]} 11. Bc2 {[%clk 0:02:38]}  Ng6 {[%clk 0:01:35]} 12. Rd1 {[%clk 0:02:36]}  Qc7 {[%clk 0:01:33]} 13. Ba4+ {[%clk 0:02:34]}  Ke7 {[%clk 0:01:19]} 14. Na3 {[%clk 0:02:29]}  a6 {[%clk 0:01:08]} 15. Be3 {[%clk 0:02:16]}  f6 {[%clk 0:00:58]} 16. Bb3 {[%clk 0:02:07]}  Kf7 {[%clk 0:00:52]} 17. h4 {[%clk 0:01:58]}  Bd6 {[%clk 0:00:46]} 18. Nc4 {[%clk 0:01:53]}  Bf4 {[%clk 0:00:36]} 19. h5 {[%clk 0:01:52]}  Bxe3 {[%clk 0:00:35]} 20. hxg6+ {[%clk 0:01:52]}  hxg6 {[%clk 0:00:36]} 21. Nd6+ {[%clk 0:01:47]}  Ke7 {[%clk 0:00:30]} 22. Qxe3 {[%clk 0:01:47]}  Bd7 {[%clk 0:00:20]} 23. g3 {[%clk 0:01:41]}  Qc6 {[%clk 0:00:17]} 24. Ne4 {[%clk 0:01:38]}  b6 {[%clk 0:00:13]} 25. Rxd7+ {[%clk 0:01:36]}  Qxd7 {[%clk 0:00:12]} 26. Rd1 {[%clk 0:01:37]}  Qc6 {[%clk 0:00:11]} 27. Rd6 {[%clk 0:01:37]}  Qb7 {[%clk 0:00:04]} 28. Rxe6+ {[%clk 0:01:37]}  Kf8 {[%clk 0:00:04]} 29. f3 {[%clk 0:01:33]}  Rd8 {[%clk 0:00:04]} 30. Nd6 {[%clk 0:01:31]}  Qd7 {[%clk 0:00:02]} 31. Kg2 {[%clk 0:01:28]}  Rh6 {[%clk 0:00:02]} 32. Bd5 {[%clk 0:01:27]}  b5 {[%clk 0:00:01]} 33. g4 {[%clk 0:01:26]}  b4 {[%clk 0:00:01]} 34. c4 {[%clk 0:01:25]}  a5 {[%clk 0:00:02]} 35. Qxc5 {[%clk 0:01:25]}  Kg8 {[%clk 0:00:01]} 36. Re8+ {[%clk 0:01:25]}  Kh7 {[%clk 0:00:01]} 37. Bg8+ {[%clk 0:01:22]} 1-0

[Event "January 9 Early 2024"]
[Site "https://www.chess.com"]
[Date "2024.01.11"]
[Round "6"]
[White "Dyachuk, Artem"]
[Black "Kraiouchkine, Nikita"]
[Result "1-0"]
[Board "75"]
[TimeControl "180+1"]
[WhiteFideId "34107924"]
[BlackFideId "2607140"]
[WhiteElo "2713"]
[BlackElo "2627"]
[WhiteTeam "UKR"]
[BlackTeam "CAN"]
[WhiteClock "0:01:22"]
[BlackClock "0:00:02"]

1. e4 {[%clk 0:03:00]}  e5 {[%clk 0:02:59]} 2. Nf3 {[%clk 0:03:00]}  Nc6 {[%clk 0:02:59]} 3. Bb5 {[%clk 0:02:58]}  f5 {[%clk 0:02:59]} 4. d3 {[%clk 0:02:57]}  fxe4 {[%clk 0:02:59]} 5. dxe4 {[%clk 0:02:57]}  Nf6 {[%clk 0:02:59]} 6. O-O {[%clk 0:02:56]}  Bc5 {[%clk 0:02:58]} 7. Nc3 {[%clk 0:02:55]}  Nd4 {[%clk 0:02:58]} 8. Bc4 {[%clk 0:02:54]}  d6 {[%clk 0:02:54]} 9. Be3 {[%clk 0:02:46]}  Bg4 {[%clk 0:02:14]} 10. Bxd4 {[%clk 0:02:44]}  Bxd4 {[%clk 0:02:11]} 11. Ne2 {[%clk 0:02:43]}  Bxf3 {[%clk 0:02:08]} 12. gxf3 {[%clk 0:02:44]}  Bb6 {[%clk 0:02:08]} 13. Ng3 {[%clk 0:02:42]}  Qd7 {[%clk 0:02:05]} 14. c3 {[%clk 0:02:40]}  Qh3 {[%clk 0:02:00]} 15. a4 {[%clk 0:02:29]}  a6 {[%clk 0:01:40]} 16. Qb3 {[%clk 0:02:26]}  a5 {[%clk 0:01:20]} 17. Be6 {[%clk 0:02:15]}  Qh4 {[%clk 0:01:17]} 18. Qb5+ {[%clk 0:02:14]}  Kf8 {[%clk 0:01:13]} 19. Ba2 {[%clk 0:02:12]}  Rd8 {[%clk 0:00:40]} 20. b4 {[%clk 0:02:04]}  axb4 {[%clk 0:00:37]} 21. a5 {[%clk 0:02:03]}  Bc5 {[%clk 0:00:33]} 22. Qc4 {[%clk 0:01:58]}  Rd7 {[%clk 0:00:29]} 23. a6 {[%clk 0:01:56]}  bxa6 {[%clk 0:00:24]} 24. Qxa6 {[%clk 0:01:57]}  Nh5 {[%clk 0:00:08]} 25. Qc8+ {[%clk 0:01:49]}  Rd8 {[%clk 0:00:04]} 26. Qe6 {[%clk 0:01:49]}  Qf6 {[%clk 0:00:01]} 27. Nxh5 {[%clk 0:01:48]}  Qxe6 {[%clk 0:00:02]} 28. Bxe6 {[%clk 0:01:48]}  Ke7 {[%clk 0:00:03]} 29. Bd5 {[%clk 0:01:38]}  g6 {[%clk 0:00:03]} 30. Ng3 {[%clk 0:01:38]}  bxc3 {[%clk 0:00:04]} 31. Rfc1 {[%clk 0:01:38]}  Rb8 {[%clk 0:00:04]} 32. Rxc3 {[%clk 0:01:34]}  Bd4 {[%clk 0:00:04]} 33. Rxc7+ {[%clk 0:01:33]}  Kf6 {[%clk 0:00:03]} 34. h4 {[%clk 0:01:31]}  g5 {[%clk 0:00:03]} 35. Rf7+ {[%clk 0:01:28]}  Kg6 {[%clk 0:00:02]} 36. h5+ {[%clk 0:01:28]}  Kh6 {[%clk 0:00:03]} 37. Nf5+ {[%clk 0:01:22]}  Kxh5 {[%clk 0:00:03]} 38. Rg7 {[%clk 0:01:23]}  Bxa1 {[%clk 0:00:02]} 39. Bf7# {[%clk 0:01:22]} 1-0

[Event "January 9 Early 2024"]
[Site "https://www.chess.com"]
[Date "2024.01.11"]
[Round "6"]
[White "Maltsevskaya, Aleksandra"]
[Black "Bueno, Alfeu Junior Varela"]
[Result "1-0"]
[Board "79"]
[TimeControl "180+1"]
[WhiteFideId "24174041"]
[BlackFideId "2108879"]
[WhiteElo "2560"]
[BlackElo "2404"]
[WhiteTeam "POL"]
[BlackTeam "BRA"]
[WhiteClock "0:00:29"]
[BlackClock "0:00:15"]

1. e4 {[%clk 0:03:00]}  e6 {[%clk 0:03:00]} 2. d4 {[%clk 0:03:00]}  d5 {[%clk 0:03:00]} 3. Nc3 {[%clk 0:02:59]}  Nf6 {[%clk 0:03:00]} 4. Bg5 {[%clk 0:02:59]}  Be7 {[%clk 0:03:00]} 5. e5 {[%clk 0:02:59]}  Nfd7 {[%clk 0:03:00]} 6. h4 {[%clk 0:02:59]}  O-O {[%clk 0:03:01]} 7. Bd3 {[%clk 0:02:57]}  c5 {[%clk 0:02:56]} 8. Qh5 {[%clk 0:02:53]}  g6 {[%clk 0:02:53]} 9. Qh6 {[%clk 0:02:53]}  Re8 {[%clk 0:02:54]} 10. Bxe7 {[%clk 0:02:52]}  Rxe7 {[%clk 0:02:54]} 11. Nf3 {[%clk 0:02:51]}  cxd4 {[%clk 0:02:46]} 12. h5 {[%clk 0:02:13]}  dxc3 {[%clk 0:02:23]} 13. Ng5 {[%clk 0:01:59]}  Nf8 {[%clk 0:02:15]} 14. Nxh7 {[%clk 0:00:59]}  Nxh7 {[%clk 0:02:16]} 15. hxg6 {[%clk 0:01:00]}  fxg6 {[%clk 0:02:17]} 16. Bxg6 {[%clk 0:01:01]}  Qc7 {[%clk 0:02:15]} 17. Bxh7+ {[%clk 0:00:45]}  Rxh7 {[%clk 0:02:11]} 18. Qg6+ {[%clk 0:00:45]}  Kh8 {[%clk 0:01:06]} 19. Qe8+ {[%clk 0:00:41]}  Kg7 {[%clk 0:01:00]} 20. Rxh7+ {[%clk 0:00:40]}  Kxh7 {[%clk 0:01:01]} 21. O-O-O {[%clk 0:00:38]}  Nd7 {[%clk 0:00:23]} 22. Qf7+ {[%clk 0:00:29]}  Kh6 {[%clk 0:00:18]} 23. Rh1+ {[%clk 0:00:30]}  Kg5 {[%clk 0:00:18]} 24. Qh5+ {[%clk 0:00:28]}  Kf4 {[%clk 0:00:15]} 25. Rh4# {[%clk 0:00:29]} 1-0

[Event "January 9 Early 2024"]
[Site "https://www.chess.com"]
[Date "2024.01.11"]
[Round "6"]
[White "Trost, Edvin"]
[Black "Mahdavi, Reza"]
[Result "0-1"]
[Board "80"]
[TimeControl "180+1"]
[WhiteFideId "1729519"]
[BlackFideId "12595926"]
[WhiteElo "2621"]
[BlackElo "2860"]
[WhiteTeam "SWE"]
[BlackTeam "IRI"]
[WhiteClock "0:00:05"]
[BlackClock "0:01:13"]

1. d4 {[%clk 0:03:00]}  Nf6 {[%clk 0:02:58]} 2. c4 {[%clk 0:03:00]}  e6 {[%clk 0:02:58]} 3. Nc3 {[%clk 0:03:00]}  d5 {[%clk 0:02:59]} 4. cxd5 {[%clk 0:02:51]}  Nxd5 {[%clk 0:02:56]} 5. e4 {[%clk 0:02:46]}  Nxc3 {[%clk 0:02:57]} 6. bxc3 {[%clk 0:02:46]}  c5 {[%clk 0:02:57]} 7. Nf3 {[%clk 0:02:33]}  cxd4 {[%clk 0:02:52]} 8. cxd4 {[%clk 0:02:34]}  Bb4+ {[%clk 0:02:52]} 9. Bd2 {[%clk 0:02:34]}  Bxd2+ {[%clk 0:02:53]} 10. Qxd2 {[%clk 0:02:35]}  O-O {[%clk 0:02:54]} 11. Bc4 {[%clk 0:02:32]}  Nd7 {[%clk 0:02:49]} 12. O-O {[%clk 0:02:32]}  b6 {[%clk 0:02:49]} 13. Rfe1 {[%clk 0:02:32]}  Bb7 {[%clk 0:02:48]} 14. Rad1 {[%clk 0:02:31]}  Rc8 {[%clk 0:02:39]} 15. Bb3 {[%clk 0:02:28]}  Re8 {[%clk 0:02:40]} 16. Qf4 {[%clk 0:02:18]}  Qc7 {[%clk 0:02:38]} 17. Qg4 {[%clk 0:02:11]}  h6 {[%clk 0:02:26]} 18. Re3 {[%clk 0:01:53]}  b5 {[%clk 0:02:25]} 19. Rde1 {[%clk 0:01:47]}  a5 {[%clk 0:02:24]} 20. d5 {[%clk 0:01:43]}  Nf6 {[%clk 0:02:10]} 21. Qh4 {[%clk 0:00:51]}  exd5 {[%clk 0:02:10]} 22. e5 {[%clk 0:00:50]}  Ne4 {[%clk 0:02:11]} 23. a4 {[%clk 0:00:15]}  bxa4 {[%clk 0:02:07]} 24. Bxa4 {[%clk 0:00:16]}  Bc6 {[%clk 0:02:08]} 25. Bxc6 {[%clk 0:00:12]}  Qxc6 {[%clk 0:02:09]} 26. Nd4 {[%clk 0:00:12]}  Qb6 {[%clk 0:02:10]} 27. Nf5 {[%clk 0:00:12]}  Qe6 {[%clk 0:02:00]} 28. Nd6 {[%clk 0:00:12]}  Qxe5 {[%clk 0:01:26]} 29. Nxc8 {[%clk 0:00:10]}  Rxc8 {[%clk 0:01:27]} 30. f3 {[%clk 0:00:06]}  Qd4 {[%clk 0:01:17]} 31. Kh1 {[%clk 0:00:07]}  g5 {[%clk 0:01:15]} 32. Rxe4 {[%clk 0:00:01]}  dxe4 {[%clk 0:01:14]} 33. Qxe4 {[%clk 0:00:02]}  Qxe4 {[%clk 0:01:14]} 34. fxe4 {[%clk 0:00:03]}  Ra8 {[%clk 0:01:12]} 35. Ra1 {[%clk 0:00:03]}  a4 {[%clk 0:01:12]} 36. Ra3 {[%clk 0:00:03]}  Kg7 {[%clk 0:01:13]} 37. Kg1 {[%clk 0:00:04]}  Kf6 {[%clk 0:01:14]} 38. Rxa4 {[%clk 0:00:05]}  Rxa4 {[%clk 0:01:13]} 0-1

[Event "January 9 Early 2024"]
[Site "https://www.chess.com"]
[Date "2024.01.11"]
[Round "6"]
[White "Seo, Jung Min"]
[Black "Rozman, Levy"]
[Result "1-0"]
[Board "82"]
[TimeControl "180+1"]
[WhiteFideId "1734687"]
[BlackFideId "2039877"]
[WhiteElo "2858"]
[BlackElo "2658"]
[WhiteTeam "SWE"]
[BlackTeam "USA"]
[WhiteClock "0:01:14"]
[BlackClock "0:00:03"]

1. d4 {[%clk 0:03:00]}  d5 {[%clk 0:02:59]} 2. c4 {[%clk 0:03:01]}  dxc4 {[%clk 0:02:59]} 3. e4 {[%clk 0:02:59]}  b5 {[%clk 0:02:59]} 4. a4 {[%clk 0:02:55]}  c6 {[%clk 0:03:00]} 5. Nc3 {[%clk 0:02:55]}  a6 {[%clk 0:02:58]} 6. axb5 {[%clk 0:02:51]}  cxb5 {[%clk 0:02:59]} 7. Nxb5 {[%clk 0:02:51]}  axb5 {[%clk 0:03:00]} 8. Rxa8 {[%clk 0:02:52]}  Bb7 {[%clk 0:03:00]} 9. Ra1 {[%clk 0:02:52]}  e6 {[%clk 0:03:00]} 10. Ne2 {[%clk 0:02:44]}  Bxe4 {[%clk 0:02:47]} 11. Nc3 {[%clk 0:02:43]}  Nf6 {[%clk 0:02:41]} 12. Nxe4 {[%clk 0:02:34]}  Nxe4 {[%clk 0:02:41]} 13. Be2 {[%clk 0:02:35]}  Bb4+ {[%clk 0:02:37]} 14. Kf1 {[%clk 0:02:35]}  O-O {[%clk 0:02:27]} 15. Bf3 {[%clk 0:02:35]}  f5 {[%clk 0:02:18]} 16. g3 {[%clk 0:02:34]}  Nc6 {[%clk 0:02:00]} 17. Be3 {[%clk 0:02:33]}  Ne7 {[%clk 0:01:30]} 18. Kg2 {[%clk 0:02:24]}  Nd5 {[%clk 0:01:30]} 19. Bxe4 {[%clk 0:02:16]}  fxe4 {[%clk 0:01:29]} 20. Qg4 {[%clk 0:02:17]}  Qd7 {[%clk 0:01:13]} 21. Qxe4 {[%clk 0:02:16]}  Qc6 {[%clk 0:01:11]} 22. f3 {[%clk 0:02:10]}  Kh8 {[%clk 0:00:40]} 23. Bf2 {[%clk 0:02:09]}  c3 {[%clk 0:00:32]} 24. bxc3 {[%clk 0:02:09]}  Bxc3 {[%clk 0:00:32]} 25. Ra7 {[%clk 0:02:07]}  Qb6 {[%clk 0:00:25]} 26. Rd7 {[%clk 0:01:48]}  Qc6 {[%clk 0:00:24]} 27. Ra7 {[%clk 0:01:48]}  Qb6 {[%clk 0:00:21]} 28. Ra2 {[%clk 0:01:48]}  b4 {[%clk 0:00:21]} 29. Re2 {[%clk 0:01:46]}  Rf6 {[%clk 0:00:16]} 30. Rb1 {[%clk 0:01:45]}  Qc6 {[%clk 0:00:14]} 31. h4 {[%clk 0:01:39]}  h6 {[%clk 0:00:14]} 32. Kh2 {[%clk 0:01:35]}  Qc4 {[%clk 0:00:14]} 33. g4 {[%clk 0:01:23]}  Rf4 {[%clk 0:00:10]} 34. Qxe6 {[%clk 0:01:22]}  Rxf3 {[%clk 0:00:10]} 35. Qe8+ {[%clk 0:01:21]}  Kh7 {[%clk 0:00:10]} 36. Qe4+ {[%clk 0:01:21]}  Kh8 {[%clk 0:00:06]} 37. Qe8+ {[%clk 0:01:14]}  Kh7 {[%clk 0:00:05]} 38. Qe4+ {[%clk 0:01:14]}  Kh8 {[%clk 0:00:05]} 39. Qxf3 {[%clk 0:01:14]}  Qc7+ {[%clk 0:00:03]} 40. Bg3 {[%clk 0:01:14]} 1-0

[Event "January 9 Early 2024"]
[Site "https://www.chess.com"]
[Date "2024.01.11"]
[Round "6"]
[White "Kubicka, Anna"]
[Black "Perez Gormaz, Matias"]
[Result "1-0"]
[Board "84"]
[TimeControl "180+1"]
[WhiteFideId "1152254"]
[BlackFideId "3406342"]
[WhiteElo "2460"]
[BlackElo "2654"]
[WhiteTeam "POL"]
[BlackTeam "CHI"]
[WhiteClock "0:00:55"]
[BlackClock "0:00:02"]

1. e4 {[%clk 0:02:58]}  c6 {[%clk 0:03:00]} 2. Nc3 {[%clk 0:02:57]}  d5 {[%clk 0:03:01]} 3. Nf3 {[%clk 0:02:57]}  Bg4 {[%clk 0:03:01]} 4. h3 {[%clk 0:02:56]}  Bxf3 {[%clk 0:03:02]} 5. Qxf3 {[%clk 0:02:57]}  e6 {[%clk 0:03:03]} 6. d4 {[%clk 0:02:56]}  Nd7 {[%clk 0:03:01]} 7. Be2 {[%clk 0:02:55]}  g6 {[%clk 0:03:00]} 8. Be3 {[%clk 0:02:54]}  Bg7 {[%clk 0:03:00]} 9. O-O-O {[%clk 0:02:53]}  Ne7 {[%clk 0:02:59]} 10. Kb1 {[%clk 0:02:51]}  b5 {[%clk 0:02:45]} 11. exd5 {[%clk 0:02:47]}  exd5 {[%clk 0:02:45]} 12. Bd3 {[%clk 0:02:40]}  Nb6 {[%clk 0:02:41]} 13. Bg5 {[%clk 0:02:36]}  O-O {[%clk 0:02:33]} 14. Rde1 {[%clk 0:02:32]}  Re8 {[%clk 0:02:28]} 15. Bf6 {[%clk 0:02:25]}  Qd6 {[%clk 0:02:18]} 16. Bxg7 {[%clk 0:02:20]}  Kxg7 {[%clk 0:02:18]} 17. h4 {[%clk 0:02:19]}  Qf6 {[%clk 0:02:09]} 18. Qg4 {[%clk 0:02:13]}  h5 {[%clk 0:02:07]} 19. Qg3 {[%clk 0:01:52]}  Qxd4 {[%clk 0:02:05]} 20. Ne2 {[%clk 0:01:52]}  Qf6 {[%clk 0:02:04]} 21. Nf4 {[%clk 0:01:49]}  Kh8 {[%clk 0:02:02]} 22. Nh3 {[%clk 0:01:33]}  Na4 {[%clk 0:02:01]} 23. c3 {[%clk 0:01:28]}  b4 {[%clk 0:01:04]} 24. Bc2 {[%clk 0:01:26]}  Nb6 {[%clk 0:01:04]} 25. Qg5 {[%clk 0:01:14]}  Qxg5 {[%clk 0:00:43]} 26. Nxg5 {[%clk 0:01:15]}  bxc3 {[%clk 0:00:37]} 27. Nxf7+ {[%clk 0:01:14]}  Kg7 {[%clk 0:00:37]} 28. Nd6 {[%clk 0:01:11]}  cxb2 {[%clk 0:00:18]} 29. Nxe8+ {[%clk 0:01:10]}  Rxe8 {[%clk 0:00:19]} 30. Kxb2 {[%clk 0:01:03]}  Nc4+ {[%clk 0:00:19]} 31. Kc1 {[%clk 0:00:58]}  Nd6 {[%clk 0:00:18]} 32. Re6 {[%clk 0:00:57]}  Kf7 {[%clk 0:00:02]} 33. Rxd6 {[%clk 0:00:55]} 1-0